Cogmind - Beta 16 @@@ ROGUE MODE // 2025.11.04 @ 00:09:48 Player: Maxfecteau Result: Destroyed by PC-TQC(R) with Subdweller Machine Gun Performance ------------- Evolutions (0) 0 Regions Visited (2) 400 Robots Destroyed (5) 25 Value Destroyed (134) 134 Prototype IDs (0) 0 Alien Tech Used (0) 0 Bonus (0) 0 TOTAL SCORE: 559 Bonus ------- None Cogmind --------- Core Integrity 0/250 Matter 230/300 Energy 100/100 System Corruption 0% Temperature Cool (0) Movement Treading (160) Location -10/Subcaves Parts ------- > --- POWER (1) -------- (None) > --- PROPULSION (2) --- Light Treads Light Treads > --- UTILITY (2) ------ Machine Analyzer Makeshift Kinetic Plating > --- WEAPON (2) ------- Battle Cannon Subdweller Shrapnel Launcher > --- INVENTORY (5) ---- Battle Rifle Subdweller Machine Gun Peak State ------------ > --- POWER ------------ Ion Engine > --- PROPULSION ------- Light Treads Light Treads > --- UTILITY ---------- Machine Analyzer Makeshift Kinetic Plating > --- WEAPON ----------- Battle Cannon Subdweller Shrapnel Launcher > --- INVENTORY -------- Battle Rifle Subdweller Machine Gun [Rating: 14] Favorites ----------- Power Ion Engine Engine Ion Engine Propulsion Light Treads Treads Light Treads Utility Scrap Shield Storage Small Storage Unit Processor Machine Analyzer Protection Scrap Shield Weapon Assault Rifle Ballistic Gun Assault Rifle Ballistic Cannon Battle Cannon Launcher Subdweller Shrapnel Launcher Build | -11 -10 -10 ------- Run | Yrd Mat Sub Slots Evolved . | . . . Power . | . . . Propulsion . | . . . Utility . | . . . Weapon . | . . . Parts Attached 12 | 5 . 7 Power 1 | 1 . . Engine 1 | 1 . . Core . | . . . Reactor . | . . . Propulsion 2 | 2 . . Treads 2 | 2 . . Leg . | . . . Wheel . | . . . Hover . | . . . Flight . | . . . Utility 5 | 1 . 4 Device . | . . . Storage 1 | 1 . . Processor 1 | . . 1 Hackware . | . . . Protection 3 | . . 3 Artifact . | . . . Weapon 4 | 1 . 3 Energy Gun . | . . . Energy Cannon . | . . . Ballistic Gun 2 | 1 . 1 Ballistic Cannon 1 | . . 1 Launcher 1 | . . 1 Special Weapon . | . . . Impact Weapon . | . . . Slashing Weapon . | . . . Piercing Weapon . | . . . Special Melee Weapon . | . . . Unidentified Prototypes . | . . . Parts Lost 4 | . . 4 Power 1 | . . 1 Propulsion . | . . . Utility 1 | . . 1 Weapon 2 | . . 2 Highest Loss Streak 2 | . . 2 To Critical Strikes 1 | . . 1 Average Backups 2 | . . 3 Power . | . . . Propulsion . | . . . Utility . | . . . Weapon 2 | . . 2 Tool/Special . | . . . Unused Backups 3 | . . 3 Power . | . . . Propulsion . | . . . Utility . | . . . Weapon 3 | . . 3 Tool/Special . | . . . Average Slot Usage (%) 80 | . 71 81 Engine 14 | . 14 14 Treads 28 | . 28 28 Storage 4 | . 14 2 Protection 9 | . . 11 Ballistic Gun 20 | . 14 21 Ballistic Cannon 1 | . . 1 Launcher 1 | . . 1 Peak Build Rating 14 | 5 5 14 Average Rating 10 | 3 5 11 On Entrance 3 | . 5 5 Avg Prop Armor Cover (%) . | . . . Naked Turns . | . . . Heaviest Build 27 | 12 12 27 Greatest Support 40 | 40 40 40 Greatest Overweight (x) . | . . . Average Overweight (x) . | . . . Largest Inventory Capacity 8 | 8 8 8 Average Capacity 5 | 7 8 5 Most Carried 5 | 2 . 5 Average Carried 3 | . . 3 Final Capacity 8 | 8 8 5 Final Carried 2 | . . 2 Class Distribution -------------------- 100% | Mutant Dominant Class ---------------- Mutant | -10/Materials Mutant | -10/Subcaves Resources | -11 -10 -10 ----------- Run | Yrd Mat Sub Matter Collected 455 | 250 . 205 Remotely . | . . . Salvage Created 100 | . 47 53 Parts 9 | . 2 7 Haulers Intercepted . | . . . Recyclers Shooed . | . . . Parts Field Recycled . | . . . Retrieved Matter . | . . . Parts Self-Destructed 12 | . . 12 Prevented . | . . . Parts Restored . | . . . Kills | -11 -10 -10 ------- Run | Yrd Mat Sub Combat Hostiles Destroyed 5 | . 1 4 Guns 4 | . 1 3 Cannons 1 | . . 1 Classes Destroyed 3 | . 1 2 Swarmer 2 | . . 2 Grunt 1 | . 1 . Subdweller 2 | . . 2 Best Kill Streak 2 | . 1 2 Combat Bots Only 2 | . 1 2 Max Kills in Single Turn 1 | . 1 1 Gunslinging . | . . . Exploded . | . . . Melee . | . . . Uniques/NPCs Destroyed . | . . . Combat | -11 -10 -10 -------- Run | Yrd Mat Sub Hostile Shots Fired 111 | . 16 95 Missed 47 | . 9 38 Hits 64 | . 7 57 Projectile 64 | . 7 57 Critical Strikes 1 | . . 1 Damage Taken 1028 | . 76 952 Core 256 | . 23 233 Absorbed by Shields . | . . . Ignored by Resistances 15 | . . 15 Core Remaining (%) 100 | 100 . . Volleys Fired 33 | . 17 16 Largest 2 | . 1 2 Hottest 73 | . 20 73 Shots Fired 48 | . 17 31 Gun 42 | . 17 25 Cannon 3 | . . 3 Launcher 3 | . . 3 Special . | . . . Kinetic 48 | . 17 31 Thermal . | . . . Explosive . | . . . Electromagnetic . | . . . Robot Hit Streak 19 | . 4 19 Robot Miss Streak 1 | . 1 1 Penetration Max . | . . . Secondary Targets . | . . . Shots Hit Robots 31 | . 10 21 Core Hits 11 | . 3 8 Critical Kills . | . . . Critical Parts Destroyed . | . . . Critical Strikes . | . . . Melee Attacks . | . . . Impact . | . . . Slashing . | . . . Piercing . | . . . Sneak Attacks . | . . . Combat Hostiles . | . . . Follow-up Attacks . | . . . Damage Inflicted 574 | . 137 437 Guns 464 | . 137 327 Cannons 43 | . . 43 Explosions 67 | . . 67 Melee . | . . . Ramming . | . . . Kinetic 574 | . 137 437 Thermal . | . . . Explosive . | . . . Electromagnetic . | . . . Impact . | . . . Slashing . | . . . Piercing . | . . . Highest Corruption . | . . . Average Corruption . | . . . Corruption Purged . | . . . Corruption Blocked . | . . . Overload Shots . | . . . Overflow Damage . | . . . Projectiles . | . . . Explosions . | . . . Melee . | . . . Knockbacks 1 | . . 1 Impact . | . . . Kinetic 1 | . . 1 Secondary . | . . . Self-Inflicted Damage 11 | . . 11 Shots 1 | . . 1 Rammed . | . . . Targets Rammed . | . . . Kicked . | . . . Crushed . | . . . Highest Temperature . | . . . Average Temperature . | . . . Received Heat Transfer 114 | . 42 72 Siege Activations . | . . . Martial Activations . | . . . Shielding Activations . | . . . Robots Disrupted . | . . . Combat Hostiles . | . . . Robots Corrupted . | . . . Combat Hostiles . | . . . Parts Fried . | . . . Impact Corruptions . | . . . Robots Melted . | . . . Combat Hostiles . | . . . Parts Melted . | . . . Heat Transferred . | . . . Parts Sabotaged . | . . . Parts Stolen . | . . . Parts Stripped . | . . . Power Chain Reactions . | . . . Alert | -11 -10 -10 ------- Run | Yrd Mat Sub Maximum Alert Level . | . . . Low Security (%) 100 | 100 100 . Level 1 . | . . . Level 2 . | . . . Level 3 . | . . . Level 4 . | . . . Level 5 . | . . . High Security . | . . . Max Security . | . . . Peak Influence 30 | . 30 . Initial . | . . . Average 3 | . 3 . Influence Increases 100 | . 30 70 Destroy 0b10 Robot/C 60 | . 20 40 Destroy Leader 10 | . 10 . Lose Combat Pursuer 30 | . . 30 Influence Decreases 100 | . 30 70 Time Decay 91 | . 30 61 Lost Part 9 | . . 9 Squads Dispatched 1 | . 1 . Investigation . | . . . Extermination . | . . . Reinforcement 1 | . 1 . Assault . | . . . Garrison . | . . . Intercept . | . . . Searches Triggered . | . . . Construction Impeded . | . . . Haulers Reinforced . | . . . Active Scanning Responses . | . . . Cargo Convoy Interrupts . | . . . Stealth | -11 -10 -10 --------- Run | Yrd Mat Sub Distress Signals . | . . . Communications Jammed . | . . . Distress Signals . | . . . Times Spotted 14 | . 4 10 Peak Tracking Total 3 | . 1 3 Tactical Retreats 2 | . . 2 Traps | -11 -10 -10 ------- Run | Yrd Mat Sub Traps Triggered 3 | . . 3 Indirectly . | . . . Trap Hack Attempts . | . . . Triggered . | . . . Disarmed . | . . . Reprogrammed . | . . . Reused . | . . . Traps Extracted . | . . . Installed . | . . . Triggered . | . . . Machines | -11 -10 -10 ---------- Run | Yrd Mat Sub Machines Disabled . | . . . Max in Single Turn . | . . . Machines Repaired . | . . . Machines Dismantled . | . . . Machines Sabotaged . | . . . Overloaded Fab Kills . | . . . Hacking | -11 -10 -10 --------- Run | Yrd Mat Sub Machines Accessed 2 | . 1 1 Terminals 1 | . 1 . Fabricators . | . . . Repair Stations . | . . . Recycling Units . | . . . Scanalyzers . | . . . Garrison Access . | . . . Total Hacks 6 | . 2 4 Successful 4 | . . 4 Failed 2 | . 2 . Catastrophic 1 | . 1 . Database Lockouts . | . . . Manual 6 | . 1 5 Terminals 2 | . 2 . Fabricators . | . . . Repair Stations . | . . . Recycling Units . | . . . Scanalyzers . | . . . Garrison Access . | . . . Terminal Hacks 4 | . . 4 Record 4 | . . 4 Fabricator Hacks . | . . . Repair Station Hacks . | . . . Recycling Unit Hacks . | . . . Scanalyzer . | . . . Garrison Access Hacks . | . . . Unauthorized Hacks . | . . . Terminals . | . . . Fabricators . | . . . Repair Stations . | . . . Recycling Units . | . . . Scanalyzers . | . . . Garrison Access . | . . . Data Cores Recovered . | . . . Used . | . . . Hacking Detections 1 | . 1 . Full Trace Events . | . . . Feedback Events . | . . . Feedback Blocked . | . . . Robot Schematics Acquired . | . . . Robots Built . | . . . Authchips . | . . . Time . | . . . Total Robot Build Rating . | . . . Part Schematics Acquired . | . . . Parts Built . | . . . Authchips . | . . . Time . | . . . Total Part Build Rating . | . . . Part Studies Acquired . | . . . Parts Repaired . | . . . Time . | . . . Parts Recycled . | . . . Recycled Matter . | . . . Retrieved Matter . | . . . Retrieved Components . | . . . Parts Scanalyzed . | . . . Part Schematics Acquired . | . . . Parts Damaged . | . . . Bothacking | -11 -10 -10 ------------ Run | Yrd Mat Sub Used RIF Installer . | . . . Robots Hacked . | . . . Non-combat . | . . . Combat . | . . . Robot Hacks Applied . | . . . Relay Couplers Released . | . . . Fabnet Peak Effective % . | . . . Robots Rewired . | . . . Allies Hacked . | . . . Hacks Repelled . | . . . Allies | -11 -10 -10 -------- Run | Yrd Mat Sub Total Allies . | . . . Largest Group . | . . . Highest-Rated Group . | . . . Highest-Rated Ally . | . . . Total Orders . | . . . Ally Attacks . | . . . Total Damage . | . . . Kills . | . . . Allies Corrupted . | . . . Allies Melted . | . . . Intel | -11 -10 -10 ------- Run | Yrd Mat Sub Active Infowar (turns) 87 | . . 87 Machine Analysis 87 | . . 87 Robot Analysis Total . | . . . Derelict Logs Recovered 1 | . . 1 Drone Launches . | . . . Drone Recoveries . | . . . Exploration | -11 -10 -10 ------------- Run | Yrd Mat Sub Turns Passed 2588 | 61 314 2213 Spaces Moved 1549 | 36 176 1337 Core 5 | 5 . . Treads 1544 | 31 176 1337 Legs . | . . . Wheels . | . . . Hover . | . . . Flight . | . . . Fastest Speed 50 | 50 160 160 Average Speed 159 | 144 160 160 Slowest Speed 160 | 160 160 160 Overloaded Moves . | . . . Propulsion Burnouts . | . . . Robots Hopped . | . . . Potential Cave-ins . | . . . Cave-ins Triggered . | . . . Exploration Rate (%) 26 | 3 27 50 Regions Visited 2 Branch Regions 1 Pre-discovered Areas 1 | . . 1 Known Exits Taken . | . . . Unknown Exits Taken 2 | 1 1 . Scrap Searched 7 | . . 7 Spaces Dug 17 | . . 17 Terrain Destroyed 36 | . . 36 Melee . | . . . Projectile . | . . . AOE 36 | . . 36 Terrain Rammed . | . . . Walls Destroyed . | . . . Machines Disabled . | . . . Actions | -11 -10 -10 --------- Run | Yrd Mat Sub Total 1611 | 44 192 1375 Wait . | . . . Move 1547 | 35 175 1337 Hop . | . . . Pick Up 10 | 2 . 8 Fast Attach 8 | 5 . 3 Attach 4 | . . 4 Detach 1 | . . 1 Swap . | . . . Drop 6 | 2 . 4 Fire 33 | . 17 16 Melee . | . . . Ram . | . . . Kick . | . . . Crush . | . . . Escape Stasis . | . . . Rewire . | . . . Trap . | . . . Miscellaneous 2 | . . 2 Route ------- -11/Scrapyard -10/Materials (discovered 2 exits: [*Mat] / *Sub) -10/Subcaves (discovered 1 exit: [*Mat]) History --------- Turn | Location | Event 15 | -11/Scrapyard | Discovered new exit (range 15) 62 | -11/Scrapyard | Entered Materials 168 | -10/Materials | Discovered new exit (range 16) 310 | -10/Materials | Build established: Mutant 364 | -10/Materials | Discovered new exit (range 6) 376 | -10/Materials | Entered Subcaves 377 | -10/Subcaves | Approached by a straggling Scientist 390 | -10/Subcaves | Learned location of Zion (-6) 390 | -10/Subcaves | Met a Zionite searching for "candidates" 424 | -10/Subcaves | Learned Materials terminal intel 648 | -10/Subcaves | Shifting Twisted Machinery released Sub. Monowheel 663 | -10/Subcaves | Shifting Twisted Machinery released Mak. Shrapnel Gun 735 | -10/Subcaves | Core integrity fell below 50% 934 | -10/Subcaves | Shifting Twisted Machinery released Mak. Kinetic Plating 942 | -10/Subcaves | Shifting Twisted Machinery released Flamer 1121 | -10/Subcaves | Discovered new exit (range 15) 1930 | -10/Subcaves | Shifting Twisted Machinery released Sub. Beam Cannon 1941 | -10/Subcaves | Shifting Twisted Machinery released Battle Cannon 2043 | -10/Subcaves | Visited Clippyterm 2048 | -10/Subcaves | Learned Factory fabricator intel 2191 | -10/Subcaves | A swath of the cavern ceiling suddenly collapsed 2333 | -10/Subcaves | Core integrity fell below 20% 2589 | -10/Subcaves | Destroyed by PC-TQC(R) with Subdweller Machine Gun Last Messages --------------- Triggered Piercing Trap. Spikes shoot up from the floor. Critical hit (Impale). Triggered Piercing Trap. Spikes shoot up from the floor. Critical hit (Impale). Mak. Shrapnel Gun destroyed. Critical hit (Impale). A swath of the cavern ceiling suddenly collapses. Critical hit (Destroy). Assault Rifle destroyed. Scrap Shield destroyed. S-10 Pest destroyed. Acquired 60 matter. Acquired Machine Analyzer. Connecting with Clippyterm... Ion Engine destroyed. EY-BR6(R) knocked back. [Achievement: Do Not Disturb] PC-TQC(R): "ARGHSUB!" Map ----- +----------------------------------------------------+ | ##?????????????????????????# #####??#### # | | ##??????????????????????????## ##### #### ## # | | #???????????????????????????## ## ## # | | ##????????????????????????????# ## # | | ###??????????????????????????## ## | | #?????????????????????????## ## # ## | | #???????????????????????### #### ## # | | ######?????????????????## ##??## # | | ## ##???????????###### ##???## | | #???????????#"""## #????# ### # | | # #???????????#"" ## #????# ## ## | | ### #???????????#"X # ##???# #### # | | ## ##???????????#"" ## # ##??####?## | | ### ##????????????#"""### ##???#??# # | | ######?????????????#####?## #???# ?# ### | | ##????????????????????## ##??" ## ##?? | | #????????????????????# #?#"" ##"" #?? | | #????????????????????# # #??#""##" ##?? | | ##???????????????????# ####""" ##?? | | #???????????????????## # ####"" ##? | | #????????????????????### "#?##" " ## | | ##??????????????????????# ; ""### "" # | | #????????????????######?## ; ## "### # | | ####????????????##; ### ######## ## | | ######?????### #????#"] & #? | | ## #????#; = @ ##???## " | | ### #???# % ###### "### | | # #?# ##?#; ""#?## | | ## ###?#" ##;; % ""#??# | | # ##????#" "##; R;; "##?? | | # ##?????#" ##; R;# ### #####??? | | # #??????#" #; ; # #### ##???????# ### | | # #??????## ;## ##?# #????????## #?? | | ## ############ #?####### ##????????? ##?? | | # # # ##### ## ### # # #????????? ##??? | | ## = ""## " #????????? #???? | | ##### %## ##% ""######## # ## ##????????? #???? | | ##??# ########" #?????#########?????????? #???? | | #??# #?????# " " #???????????????????????? ????? | | #?## ##?????# ##???????????????????????? ????? | | ### #?????##" "#??????????????????????????????? | | ## #??????##" ################???????????????? | | #??????#" # # # # #???????????????? | | ##??????# ##??????????????? | | ## ##??????## #??????????????? | | ### ##?????# ## ### %# #??????????????? | | ### ##????##?####?######## ##??????????????? | | # #???????????????????# ##??????????????? | | ## # ##???????????????????# #??????????????? | | # ##????????????????????# #??????????????? | +----------------------------------------------------+ Best States ------------- Heat Dissipation 25 Energy Generation 10 Energy Capacity 250 Matter Stores 300 Matter Capacity 300 Sight Range 16 Terrain Scan Density 10 Armor Coverage 800 Resistance: KI 10 Resistance: TH 10 Evasion (%) 40 Recoil Reduction 2 Item Schematics ----------------- None Robot Schematics ------------------ None Fabricated ------------ Nothing Repaired ---------- Nothing Studied --------- None Alien Tech Used ----------------- None Achievements -------------- Do Not Disturb Survival Of The Most Covered Challenges ------------ None Game ------ Seed ExpertLongswordWartreads Manual? 0 Play Time 00:21:10 Cumulative 19.4 hours Start 2025.11.03 @ 23:49:38 End 2025.11.04 @ 00:09:48 Sessions 1 Manual Loads 0 Difficulty Rogue Special Mode None Game No. 16 Rogue 16 Adventurer 0 Explorer 0 Win Type - Total 1 Types 1/0/0/0/0/0/0/0/0/0 Lore% 15 Gallery% 20 Achievement% 22 Wizard Run 0 Options --------- Layout 0 ASCII 1 Keyboard 1 Movement Arrows Keybinds 0 Fullscreen 2 Font 18/SmallcapsGlow Map View 76x50 Zoom Use 0% Tactical HUD 0 Map Filters NONE Filters NONE Steam 1 RUN: 83523b1d-9d3e-45b6-8d9b-58e1b96ad1ae